[Event "Early-Titled-Tuesday-Blitz-March-05-2024"]
[Site "Chess.com"]
[Date "2024.03.05"]
[Round "1"]
[White "ChessQueen"]
[Black "Schattman"]
[Result "1-0"]
[WhiteElo "2775"]
[BlackElo "2438"]
[TimeControl "180+1"]
[EndTime "8:07:44 PST"]
[Termination "ChessQueen won on time"]

1. Nf3 {[%clk 0:03:00.9]} 1... Nf6 {[%clk 0:02:59.6]} 2. g3 {[%clk 0:03:01.1]}
2... g6 {[%clk 0:03:00.2]} 3. Bg2 {[%clk 0:03:01.5]} 3... Bg7 {[%clk 0:03:00.9]}
4. c4 {[%clk 0:03:02.1]} 4... c6 {[%clk 0:03:00.2]} 5. d4 {[%clk 0:02:59.4]}
5... d5 {[%clk 0:03:00]} 6. O-O {[%clk 0:02:57.9]} 6... O-O {[%clk 0:02:59]} 7.
a4 {[%clk 0:02:53.8]} 7... a5 {[%clk 0:02:54.6]} 8. Qb3 {[%clk 0:02:48.9]} 8...
Na6 {[%clk 0:02:47.3]} 9. Na3 {[%clk 0:02:45]} 9... Nb4 {[%clk 0:02:44.5]} 10.
Bd2 {[%clk 0:02:42.8]} 10... dxc4 {[%clk 0:02:22.7]} 11. Nxc4 {[%clk 0:02:41.4]}
11... Be6 {[%clk 0:02:03.8]} 12. Ng5 {[%clk 0:02:36.7]} 12... Bd5 {[%clk
0:01:56.1]} 13. e4 {[%clk 0:02:34.4]} 13... Bxc4 {[%clk 0:01:54.4]} 14. Qxc4
{[%clk 0:02:35.3]} 14... h6 {[%clk 0:01:54.3]} 15. Nh3 {[%clk 0:02:29.3]} 15...
Qb6 {[%clk 0:01:38.9]} 16. Bc3 {[%clk 0:02:22.9]} 16... e6 {[%clk 0:01:35.4]}
17. Rad1 {[%clk 0:02:18.9]} 17... Rfd8 {[%clk 0:01:34.6]} 18. Nf4 {[%clk
0:02:14.7]} 18... Qa6 {[%clk 0:01:30.3]} 19. Qb3 {[%clk 0:02:09.3]} 19... Qb6
{[%clk 0:01:28.7]} 20. h4 {[%clk 0:02:06.2]} 20... Ng4 {[%clk 0:01:26.7]} 21.
Nxe6 {[%clk 0:02:04]} 21... fxe6 {[%clk 0:01:21]} 22. Qxe6+ {[%clk 0:02:04]}
22... Kh7 {[%clk 0:01:21.2]} 23. Qxg4 {[%clk 0:02:04.3]} 23... Bxd4 {[%clk
0:01:21.3]} 24. h5 {[%clk 0:02:02.3]} 24... c5 {[%clk 0:01:10.5]} 25. e5 {[%clk
0:01:55.8]} 25... gxh5 {[%clk 0:00:42.6]} 26. Be4+ {[%clk 0:01:49]} 26... Kh8
{[%clk 0:00:42.6]} 27. Qxh5 {[%clk 0:01:42.7]} 27... Qe6 {[%clk 0:00:36.1]} 28.
Bxd4 {[%clk 0:01:38.7]} 28... Rxd4 {[%clk 0:00:30.4]} 29. Rxd4 {[%clk 0:01:37]}
29... cxd4 {[%clk 0:00:30.2]} 30. Bxb7 {[%clk 0:01:36.6]} 30... Rb8 {[%clk
0:00:24.3]} 31. Be4 {[%clk 0:01:35.1]} 31... d3 {[%clk 0:00:24.6]} 32. Rd1
{[%clk 0:01:33.7]} 32... Rd8 {[%clk 0:00:20.8]} 33. Kg2 {[%clk 0:01:33.5]} 33...
Rd4 {[%clk 0:00:15.8]} 34. Qf3 {[%clk 0:01:29.4]} 34... Kg7 {[%clk 0:00:10.2]}
35. Bxd3 {[%clk 0:01:26.2]} 35... Qxe5 {[%clk 0:00:10.3]} 36. Be2 {[%clk
0:01:11.9]} 36... Rxd1 {[%clk 0:00:08.9]} 37. Bxd1 {[%clk 0:01:12.8]} 37... Qxb2
{[%clk 0:00:08.4]} 38. Bb3 {[%clk 0:01:12]} 38... Qf6 {[%clk 0:00:06.8]} 39.
Qb7+ {[%clk 0:01:09.7]} 39... Kf8 {[%clk 0:00:05.4]} 40. Bc4 {[%clk 0:01:07.8]}
40... Qc6+ {[%clk 0:00:04.2]} 41. Qxc6 {[%clk 0:01:07.2]} 41... Nxc6 {[%clk
0:00:05.1]} 42. f4 {[%clk 0:01:07.5]} 42... Ke7 {[%clk 0:00:04.9]} 43. Kf3
{[%clk 0:01:07.9]} 43... Kf6 {[%clk 0:00:05.1]} 44. Ke4 {[%clk 0:01:08.1]} 44...
Nb4 {[%clk 0:00:04.9]} 45. g4 {[%clk 0:01:06.6]} 45... Nc2 {[%clk 0:00:01.6]}
46. Bb3 {[%clk 0:01:04.3]} 46... Nb4 {[%clk 0:00:01.6]} 47. Kd4 {[%clk
0:01:02.2]} 47... Na6 {[%clk 0:00:01.5]} 48. Kc4 {[%clk 0:00:59.5]} 48... Nb4
{[%clk 0:00:02]} 49. Bd1 {[%clk 0:00:56.4]} 49... Nc6 {[%clk 0:00:01.8]} 50. Kb5
{[%clk 0:00:53.2]} 50... Nd4+ {[%clk 0:00:01.8]} 51. Kxa5 {[%clk 0:00:53.5]}
51... Ne6 {[%clk 0:00:02.4]} 52. f5 {[%clk 0:00:52.8]} 52... Nd4 {[%clk
0:00:02.4]} 53. Kb6 {[%clk 0:00:50.7]} 53... h5 {[%clk 0:00:02.7]} 54. gxh5
{[%clk 0:00:50.6]} 54... Nxf5 {[%clk 0:00:02.4]} 55. a5 {[%clk 0:00:50.2]} 55...
Nd6 {[%clk 0:00:02.5]} 56. a6 {[%clk 0:00:49.5]} 56... Nc8+ {[%clk 0:00:02.6]}
57. Kc7 {[%clk 0:00:44.9]} 57... Na7 {[%clk 0:00:02.7]} 58. Be2 {[%clk
0:00:45.2]} 58... Kg5 {[%clk 0:00:02.4]} 59. Kb7 {[%clk 0:00:44.5]} 1-0

[Event "Early-Titled-Tuesday-Blitz-March-05-2024"]
[Site "Chess.com"]
[Date "2024.03.05"]
[Round "1"]
[White "GaiozNigalidze"]
[Black "Coach_Istvanovszki"]
[Result "0-1"]
[WhiteElo "2694"]
[BlackElo "2429"]
[TimeControl "180+1"]
[EndTime "8:07:44 PST"]
[Termination "Coach_Istvanovszki won on time"]

1. d4 {[%clk 0:03:00.9]} 1... g6 {[%clk 0:02:59.7]} 2. c4 {[%clk 0:03:01.2]}
2... Bg7 {[%clk 0:03:00.2]} 3. Nc3 {[%clk 0:03:00.7]} 3... d6 {[%clk 0:03:00.6]}
4. e4 {[%clk 0:03:00.4]} 4... e5 {[%clk 0:03:01]} 5. d5 {[%clk 0:02:59.8]} 5...
a5 {[%clk 0:03:00.9]} 6. g3 {[%clk 0:02:59.4]} 6... Na6 {[%clk 0:03:00]} 7. Bg2
{[%clk 0:02:59.4]} 7... f5 {[%clk 0:02:54.4]} 8. Nf3 {[%clk 0:02:50.4]} 8... h6
{[%clk 0:02:47.1]} 9. exf5 {[%clk 0:02:45.4]} 9... gxf5 {[%clk 0:02:45.3]} 10.
Nh4 {[%clk 0:02:45.5]} 10... Nf6 {[%clk 0:02:39.5]} 11. Ng6 {[%clk 0:02:13.5]}
11... Rg8 {[%clk 0:02:39]} 12. f4 {[%clk 0:02:10.5]} 12... e4 {[%clk 0:02:35]}
13. Nh4 {[%clk 0:01:53.9]} 13... Nc5 {[%clk 0:02:29.2]} 14. Bh3 {[%clk 0:01:45]}
14... Nd3+ {[%clk 0:02:27.7]} 15. Kf1 {[%clk 0:01:45.2]} 15... c6 {[%clk
0:01:53.4]} 16. Be3 {[%clk 0:01:29.1]} 16... cxd5 {[%clk 0:01:51]} 17. Nxd5
{[%clk 0:01:26.9]} 17... Nxd5 {[%clk 0:01:34.7]} 18. Qh5+ {[%clk 0:01:14.1]}
18... Ke7 {[%clk 0:01:29]} 19. cxd5 {[%clk 0:01:07.5]} 19... Bxb2 {[%clk
0:01:22.9]} 20. Rd1 {[%clk 0:00:54.2]} 20... Qe8 {[%clk 0:01:10]} 21. Nxf5+
{[%clk 0:00:49.7]} 21... Bxf5 {[%clk 0:01:06.8]} 22. Qxf5 {[%clk 0:00:48.7]}
22... Nc5 {[%clk 0:01:02.8]} 23. Bxc5 {[%clk 0:00:42.1]} 23... Qb5+ {[%clk
0:01:03.4]} 24. Kg2 {[%clk 0:00:33.9]} 24... Qe2+ {[%clk 0:01:03.2]} 25. Bf2
{[%clk 0:00:19.5]} 25... Qf3+ {[%clk 0:01:03.3]} 26. Kg1 {[%clk 0:00:20.2]}
26... Qxd1+ {[%clk 0:01:03.8]} 27. Bf1 {[%clk 0:00:20.9]} 27... Qg4 {[%clk
0:00:52.9]} 28. Qxe4+ {[%clk 0:00:20.3]} 28... Kf7 {[%clk 0:00:47.4]} 29. Kg2
{[%clk 0:00:19.3]} 29... Rae8 {[%clk 0:00:47.1]} 30. Qb1 {[%clk 0:00:19.4]}
30... Bf6 {[%clk 0:00:41.6]} 31. Qxb7+ {[%clk 0:00:18.6]} 31... Re7 {[%clk
0:00:42.1]} 32. Qb3 {[%clk 0:00:18.5]} 32... h5 {[%clk 0:00:42.2]} 33. h3 {[%clk
0:00:18.1]} 33... Qxf4 {[%clk 0:00:41.6]} 34. Bd3 {[%clk 0:00:15.5]} 34... Be5
{[%clk 0:00:38.5]} 35. Rf1 {[%clk 0:00:15.7]} 35... Bf6 {[%clk 0:00:30.6]} 36.
Bb1 {[%clk 0:00:12.8]} 36... Qe5 {[%clk 0:00:28.6]} 37. Be1 {[%clk 0:00:09.2]}
37... Kg7 {[%clk 0:00:28.8]} 38. h4 {[%clk 0:00:08.4]} 38... Kh8 {[%clk
0:00:28.4]} 39. Qd3 {[%clk 0:00:07.5]} 39... Reg7 {[%clk 0:00:27.8]} 40. Kh3
{[%clk 0:00:05]} 40... Qd4 {[%clk 0:00:21.7]} 41. Qc2 {[%clk 0:00:02.3]} 41...
Qg4+ {[%clk 0:00:21.7]} 42. Kh2 {[%clk 0:00:02.2]} 42... Bxh4 {[%clk 0:00:20.6]}
43. Rg1 {[%clk 0:00:01.8]} 43... Bxg3+ {[%clk 0:00:20.5]} 44. Rxg3 {[%clk
0:00:01.1]} 44... Qh4+ {[%clk 0:00:20.7]} 45. Kg2 {[%clk 0:00:01.7]} 45... Qf6
{[%clk 0:00:20.4]} 46. Qd3 {[%clk 0:00:01.4]} 46... Rxg3+ {[%clk 0:00:20.1]} 47.
Bxg3 {[%clk 0:00:02.3]} 47... Qg7 {[%clk 0:00:20.6]} 48. Kh2 {[%clk 0:00:01.2]}
48... h4 {[%clk 0:00:20.4]} 49. Qf3 {[%clk 0:00:01.3]} 49... Qxg3+ {[%clk
0:00:20.4]} 0-1

[Event "Early-Titled-Tuesday-Blitz-March-05-2024"]
[Site "Chess.com"]
[Date "2024.03.05"]
[Round "1"]
[White "Caroexpert"]
[Black "arnash_bauyrzhan"]
[Result "1-0"]
[WhiteElo "2614"]
[BlackElo "2312"]
[TimeControl "180+1"]
[EndTime "8:07:44 PST"]
[Termination "Caroexpert won on time"]

1. Nf3 {[%clk 0:02:56.6]} 1... Nf6 {[%clk 0:02:56.4]} 2. d4 {[%clk 0:02:55.6]}
2... d5 {[%clk 0:02:54.7]} 3. Bf4 {[%clk 0:02:53.9]} 3... e6 {[%clk 0:02:54.1]}
4. e3 {[%clk 0:02:37.4]} 4... Bd6 {[%clk 0:02:53.1]} 5. Nbd2 {[%clk 0:02:36.3]}
5... O-O {[%clk 0:02:51.1]} 6. Bd3 {[%clk 0:02:33.9]} 6... c5 {[%clk 0:02:50.4]}
7. c3 {[%clk 0:02:34.3]} 7... Qc7 {[%clk 0:02:49.2]} 8. Bg5 {[%clk 0:02:29]}
8... Nbd7 {[%clk 0:02:48.7]} 9. O-O {[%clk 0:02:23.7]} 9... h6 {[%clk
0:02:48.1]} 10. Bh4 {[%clk 0:02:23.6]} 10... e5 {[%clk 0:02:48.1]} 11. dxe5
{[%clk 0:02:23.3]} 11... Bxe5 {[%clk 0:02:48.3]} 12. Nxe5 {[%clk 0:02:07.5]}
12... Qxe5 {[%clk 0:02:46.9]} 13. Bg3 {[%clk 0:02:02.7]} 13... Qe7 {[%clk
0:02:45.5]} 14. c4 {[%clk 0:02:00.2]} 14... Ne5 {[%clk 0:02:43.5]} 15. Be2
{[%clk 0:01:33.6]} 15... Rd8 {[%clk 0:02:09.3]} 16. cxd5 {[%clk 0:01:29.8]}
16... Nxd5 {[%clk 0:02:08.2]} 17. a3 {[%clk 0:01:15.8]} 17... Nf6 {[%clk
0:01:39.1]} 18. Qc2 {[%clk 0:01:14.6]} 18... Bg4 {[%clk 0:01:38.3]} 19. f3
{[%clk 0:01:05.8]} 19... Bh5 {[%clk 0:01:33.8]} 20. e4 {[%clk 0:01:00.4]} 20...
Nc6 {[%clk 0:01:30.8]} 21. Nb3 {[%clk 0:00:54.2]} 21... Nd4 {[%clk 0:01:03.8]}
22. Nxd4 {[%clk 0:00:53.5]} 22... cxd4 {[%clk 0:01:02.9]} 23. Rac1 {[%clk
0:00:43.6]} 23... Bg6 {[%clk 0:00:57.5]} 24. Bd3 {[%clk 0:00:39.8]} 24... Nh5
{[%clk 0:00:53.5]} 25. Rfd1 {[%clk 0:00:35.5]} 25... Rac8 {[%clk 0:00:46]} 26.
Qxc8 {[%clk 0:00:34.7]} 26... Rxc8 {[%clk 0:00:46.2]} 27. Rxc8+ {[%clk
0:00:34.8]} 27... Kh7 {[%clk 0:00:46.6]} 28. Bf2 {[%clk 0:00:31.6]} 28... Nf4
{[%clk 0:00:36.5]} 29. Bf1 {[%clk 0:00:31.5]} 29... d3 {[%clk 0:00:20.1]} 30. g3
{[%clk 0:00:29.1]} 30... Ne2+ {[%clk 0:00:17.6]} 31. Bxe2 {[%clk 0:00:28.8]}
31... dxe2 {[%clk 0:00:17.9]} 32. Re1 {[%clk 0:00:28.7]} 32... f5 {[%clk
0:00:09.8]} 33. Rxe2 {[%clk 0:00:20]} 33... fxe4 {[%clk 0:00:09.5]} 34. fxe4
{[%clk 0:00:20.1]} 34... Qd7 {[%clk 0:00:08.3]} 35. Rc1 {[%clk 0:00:18.6]} 35...
Qd3 {[%clk 0:00:08]} 36. Rce1 {[%clk 0:00:18.5]} 36... Qf3 {[%clk 0:00:06.4]}
37. Re3 {[%clk 0:00:17]} 37... Qg4 {[%clk 0:00:06.5]} 38. e5 {[%clk 0:00:14.4]}
38... Be8 {[%clk 0:00:02.4]} 39. Re4 {[%clk 0:00:12.2]} 1-0

[Event "Early-Titled-Tuesday-Blitz-March-05-2024"]
[Site "Chess.com"]
[Date "2024.03.05"]
[Round "1"]
[White "FischerKasparow"]
[Black "ExtremeLearner"]
[Result "0-1"]
[WhiteElo "2069"]
[BlackElo "2539"]
[TimeControl "180+1"]
[EndTime "8:07:46 PST"]
[Termination "ExtremeLearner won on time"]

1. e4 {[%clk 0:02:59.1]} 1... e6 {[%clk 0:02:55.3]} 2. d4 {[%clk 0:02:58.5]}
2... d5 {[%clk 0:02:55.7]} 3. Bd3 {[%clk 0:02:59]} 3... dxe4 {[%clk 0:02:54.2]}
4. Bxe4 {[%clk 0:02:59.9]} 4... Nf6 {[%clk 0:02:54.6]} 5. Bf3 {[%clk 0:02:59.5]}
5... c5 {[%clk 0:02:54.9]} 6. Ne2 {[%clk 0:02:59.9]} 6... Be7 {[%clk 0:02:54]}
7. Be3 {[%clk 0:02:59.2]} 7... O-O {[%clk 0:02:53.6]} 8. O-O {[%clk 0:02:57.6]}
8... Nbd7 {[%clk 0:02:48.2]} 9. Nbc3 {[%clk 0:02:54.7]} 9... a6 {[%clk
0:02:28.3]} 10. dxc5 {[%clk 0:02:49.5]} 10... Qc7 {[%clk 0:02:27]} 11. b4 {[%clk
0:02:39.4]} 11... Ne5 {[%clk 0:02:11.7]} 12. Ng3 {[%clk 0:02:29.9]} 12... Rd8
{[%clk 0:02:02.8]} 13. Qe2 {[%clk 0:02:24.4]} 13... Nxf3+ {[%clk 0:01:52.4]} 14.
Qxf3 {[%clk 0:02:25.3]} 14... Bd7 {[%clk 0:01:51.3]} 15. Rad1 {[%clk 0:02:15.5]}
15... Bc6 {[%clk 0:01:50.4]} 16. Qe2 {[%clk 0:02:12.2]} 16... Nd5 {[%clk
0:01:43.9]} 17. Nxd5 {[%clk 0:02:10.5]} 17... exd5 {[%clk 0:01:34.9]} 18. Bd4
{[%clk 0:02:02.1]} 18... Bf8 {[%clk 0:01:21.5]} 19. Qg4 {[%clk 0:01:53.4]} 19...
Qd7 {[%clk 0:01:10.9]} 20. Qxd7 {[%clk 0:01:41]} 20... Bxd7 {[%clk 0:01:10.4]}
21. Rfe1 {[%clk 0:01:40.7]} 21... a5 {[%clk 0:01:09.3]} 22. a3 {[%clk
0:01:36.6]} 22... axb4 {[%clk 0:01:07.4]} 23. axb4 {[%clk 0:01:37.5]} 23... Ra2
{[%clk 0:01:07.1]} 24. c3 {[%clk 0:01:27.8]} 24... g6 {[%clk 0:01:00.1]} 25. Re2
{[%clk 0:01:23]} 25... Rda8 {[%clk 0:00:47.8]} 26. Rxa2 {[%clk 0:01:07.7]} 26...
Rxa2 {[%clk 0:00:47.1]} 27. f3 {[%clk 0:01:03.4]} 27... h5 {[%clk 0:00:43.4]}
28. Re1 {[%clk 0:00:56.7]} 28... h4 {[%clk 0:00:41.4]} 29. Ne2 {[%clk
0:00:55.2]} 29... h3 {[%clk 0:00:32.4]} 30. g3 {[%clk 0:00:36.3]} 30... Bh6
{[%clk 0:00:31.3]} 31. Nf4 {[%clk 0:00:14.4]} 31... Bxf4 {[%clk 0:00:22.9]} 32.
gxf4 {[%clk 0:00:15.3]} 32... Rg2+ {[%clk 0:00:22.1]} 33. Kh1 {[%clk 0:00:15.8]}
33... Bb5 {[%clk 0:00:15.7]} 34. Rg1 {[%clk 0:00:10.8]} 34... Rc2 {[%clk
0:00:10.8]} 35. Re1 {[%clk 0:00:10.1]} 35... Be2 {[%clk 0:00:10.4]} 36. Kg1
{[%clk 0:00:04.7]} 36... Kh7 {[%clk 0:00:09]} 37. Kf2 {[%clk 0:00:03.1]} 37...
Bc4+ {[%clk 0:00:08.2]} 38. Kg3 {[%clk 0:00:02.5]} 38... Be2 {[%clk 0:00:05.7]}
39. Kxh3 {[%clk 0:00:01.6]} 39... Bxf3 {[%clk 0:00:05.5]} 40. Kg3 {[%clk
0:00:01.4]} 40... Be4 {[%clk 0:00:05.4]} 0-1

[Event "Early-Titled-Tuesday-Blitz-March-05-2024"]
[Site "Chess.com"]
[Date "2024.03.05"]
[Round "1"]
[White "HansOnTwitch"]
[Black "nickmatta"]
[Result "1-0"]
[WhiteElo "3113"]
[BlackElo "2525"]
[TimeControl "180+1"]
[EndTime "8:07:47 PST"]
[Termination "HansOnTwitch won on time"]

1. c4 {[%clk 0:03:00.9]} 1... e6 {[%clk 0:02:57.2]} 2. Nc3 {[%clk 0:03:00.4]}
2... d5 {[%clk 0:02:55.3]} 3. cxd5 {[%clk 0:03:00.7]} 3... exd5 {[%clk
0:02:56.2]} 4. d4 {[%clk 0:03:01]} 4... c6 {[%clk 0:02:56.1]} 5. Bf4 {[%clk
0:03:00.7]} 5... Bf5 {[%clk 0:02:54.1]} 6. e3 {[%clk 0:03:00.5]} 6... Nf6 {[%clk
0:02:49]} 7. Nf3 {[%clk 0:02:49.9]} 7... Bd6 {[%clk 0:02:41.2]} 8. Bxd6 {[%clk
0:02:42.6]} 8... Qxd6 {[%clk 0:02:42.1]} 9. Nh4 {[%clk 0:02:42.9]} 9... Bg4
{[%clk 0:02:18.4]} 10. Qb3 {[%clk 0:02:41]} 10... Nbd7 {[%clk 0:02:14.1]} 11. h3
{[%clk 0:02:40.2]} 11... Be6 {[%clk 0:02:13.3]} 12. Be2 {[%clk 0:02:35.4]} 12...
Ne4 {[%clk 0:02:06]} 13. Nf3 {[%clk 0:02:30.7]} 13... O-O {[%clk 0:01:56.3]} 14.
O-O {[%clk 0:02:30.5]} 14... Rfe8 {[%clk 0:01:43.2]} 15. Rfc1 {[%clk 0:02:22.7]}
15... h6 {[%clk 0:01:34.4]} 16. Qa3 {[%clk 0:02:22.6]} 16... Qxa3 {[%clk
0:01:28.6]} 17. bxa3 {[%clk 0:02:23.5]} 17... Nd6 {[%clk 0:01:28.8]} 18. Rab1
{[%clk 0:02:13]} 18... Bf5 {[%clk 0:01:26.4]} 19. Rb2 {[%clk 0:02:12.5]} 19...
b5 {[%clk 0:01:16.1]} 20. Nd2 {[%clk 0:01:14]} 20... Nb6 {[%clk 0:01:11.8]} 21.
a4 {[%clk 0:01:02.7]} 21... Nbc4 {[%clk 0:01:04.9]} 22. Nxc4 {[%clk 0:00:51.3]}
22... bxc4 {[%clk 0:01:05.8]} 23. Rd1 {[%clk 0:00:49.7]} 23... Rab8 {[%clk
0:01:04.6]} 24. Rxb8 {[%clk 0:00:40.3]} 24... Rxb8 {[%clk 0:01:05.5]} 25. f3
{[%clk 0:00:38.5]} 25... Rb2 {[%clk 0:00:59.4]} 26. Rc1 {[%clk 0:00:37.3]} 26...
Bd3 {[%clk 0:00:50.9]} 27. Bf1 {[%clk 0:00:16.6]} 27... Nf5 {[%clk 0:00:46.4]}
28. e4 {[%clk 0:00:10.3]} 28... Ne3 {[%clk 0:00:43.4]} 29. Nd1 {[%clk
0:00:06.7]} 29... Nxd1 {[%clk 0:00:28.8]} 30. Rxd1 {[%clk 0:00:07.1]} 30... Bxf1
{[%clk 0:00:19.8]} 31. Kxf1 {[%clk 0:00:08]} 31... Rxa2 {[%clk 0:00:16.9]} 32.
Rb1 {[%clk 0:00:08.1]} 32... Rxa4 {[%clk 0:00:04.4]} 33. Ke2 {[%clk 0:00:06]}
33... c3 {[%clk 0:00:03.2]} 34. Kd3 {[%clk 0:00:05.6]} 34... Rc4 {[%clk
0:00:03.5]} 35. Kc2 {[%clk 0:00:01.5]} 35... Rxd4 {[%clk 0:00:02.7]} 36. Kxc3
{[%clk 0:00:02.2]} 36... Rc4+ {[%clk 0:00:03]} 37. Kd3 {[%clk 0:00:03]} 37... a5
{[%clk 0:00:02.8]} 38. e5 {[%clk 0:00:03.4]} 38... Kh7 {[%clk 0:00:02.8]} 39. g3
{[%clk 0:00:02.1]} 39... Kg6 {[%clk 0:00:03]} 40. Rb7 {[%clk 0:00:02.5]} 40...
a4 {[%clk 0:00:02.1]} 41. Ra7 {[%clk 0:00:03.1]} 41... Rb4 {[%clk 0:00:01.9]}
42. f4 {[%clk 0:00:03.1]} 42... Kf5 {[%clk 0:00:01.8]} 43. Rxf7+ {[%clk
0:00:03]} 43... Kg6 {[%clk 0:00:02]} 44. e6 {[%clk 0:00:02.7]} 44... Rb3+ {[%clk
0:00:01.2]} 45. Kd4 {[%clk 0:00:03.1]} 45... Rxg3 {[%clk 0:00:01.4]} 46. f5+
{[%clk 0:00:03.4]} 46... Kh7 {[%clk 0:00:01.5]} 47. e7 {[%clk 0:00:04.1]} 1-0

[Event "Early-Titled-Tuesday-Blitz-March-05-2024"]
[Site "Chess.com"]
[Date "2024.03.05"]
[Round "1"]
[White "StankovicIvan"]
[Black "Sebastian"]
[Result "1-0"]
[WhiteElo "2510"]
[BlackElo "2924"]
[TimeControl "180+1"]
[EndTime "8:07:47 PST"]
[Termination "StankovicIvan won on time"]

1. e4 {[%clk 0:03:00.9]} 1... c5 {[%clk 0:02:58.7]} 2. c4 {[%clk 0:03:00.7]}
2... Nc6 {[%clk 0:02:47.9]} 3. Nc3 {[%clk 0:02:58.7]} 3... g6 {[%clk 0:02:46.7]}
4. g3 {[%clk 0:02:51.9]} 4... Bg7 {[%clk 0:02:46.3]} 5. Bg2 {[%clk 0:02:52]}
5... d6 {[%clk 0:02:44.4]} 6. Nge2 {[%clk 0:02:51.2]} 6... Nf6 {[%clk
0:02:43.7]} 7. d3 {[%clk 0:02:51.2]} 7... O-O {[%clk 0:02:43]} 8. Rb1 {[%clk
0:02:51.7]} 8... Nd7 {[%clk 0:02:30.2]} 9. O-O {[%clk 0:02:44.9]} 9... Rb8
{[%clk 0:02:23.5]} 10. a3 {[%clk 0:02:44.4]} 10... a5 {[%clk 0:02:22.8]} 11. Be3
{[%clk 0:02:41.1]} 11... Nd4 {[%clk 0:02:22.1]} 12. b4 {[%clk 0:02:38.3]} 12...
axb4 {[%clk 0:02:21.6]} 13. axb4 {[%clk 0:02:39.2]} 13... b6 {[%clk 0:02:21.1]}
14. Qd2 {[%clk 0:02:25.4]} 14... Bb7 {[%clk 0:02:11.9]} 15. Bg5 {[%clk
0:02:13.1]} 15... Re8 {[%clk 0:01:56.4]} 16. Nxd4 {[%clk 0:02:05.3]} 16... Bxd4
{[%clk 0:01:55.5]} 17. Be3 {[%clk 0:01:52.3]} 17... Bg7 {[%clk 0:01:48.4]} 18.
f4 {[%clk 0:01:40.6]} 18... Bc6 {[%clk 0:01:32.7]} 19. f5 {[%clk 0:01:22.2]}
19... Ne5 {[%clk 0:01:18.2]} 20. Nd5 {[%clk 0:01:11.3]} 20... Bxd5 {[%clk
0:01:16.7]} 21. exd5 {[%clk 0:01:10.3]} 21... Ra8 {[%clk 0:01:14.3]} 22. Be4
{[%clk 0:00:42.2]} 22... Ra3 {[%clk 0:01:09.5]} 23. Bf4 {[%clk 0:00:25.3]} 23...
Ng4 {[%clk 0:00:49.2]} 24. h3 {[%clk 0:00:22.8]} 24... Bd4+ {[%clk 0:00:48.2]}
25. Kg2 {[%clk 0:00:21.1]} 25... Nf6 {[%clk 0:00:48.6]} 26. Rfe1 {[%clk
0:00:16.6]} 26... Qa8 {[%clk 0:00:47.6]} 27. Re2 {[%clk 0:00:17.1]} 27... Qa4
{[%clk 0:00:43.8]} 28. bxc5 {[%clk 0:00:17.2]} 28... bxc5 {[%clk 0:00:43.2]} 29.
Bf3 {[%clk 0:00:17.1]} 29... Ra8 {[%clk 0:00:40.6]} 30. Rb7 {[%clk 0:00:16.7]}
30... Ra2 {[%clk 0:00:35.4]} 31. Qe1 {[%clk 0:00:15.9]} 31... Rxe2+ {[%clk
0:00:33.5]} 32. Qxe2 {[%clk 0:00:16.8]} 32... Re8 {[%clk 0:00:19.3]} 33. Rxe7
{[%clk 0:00:16.5]} 33... Rxe7 {[%clk 0:00:17.9]} 34. Qxe7 {[%clk 0:00:17.4]}
34... Qc2+ {[%clk 0:00:17.9]} 35. Qe2 {[%clk 0:00:17.9]} 35... Qb1 {[%clk
0:00:16.8]} 36. Be3 {[%clk 0:00:15.5]} 36... Qa1 {[%clk 0:00:07.2]} 37. fxg6
{[%clk 0:00:14.5]} 37... hxg6 {[%clk 0:00:06]} 38. h4 {[%clk 0:00:13.9]} 38...
Kg7 {[%clk 0:00:06.1]} 39. Bf2 {[%clk 0:00:12]} 39... Nd7 {[%clk 0:00:05.4]} 40.
Bxd4+ {[%clk 0:00:10.2]} 40... Qxd4 {[%clk 0:00:04.2]} 41. Qe4 {[%clk
0:00:11.1]} 41... Ne5 {[%clk 0:00:02.2]} 42. Qxd4 {[%clk 0:00:10.8]} 42... cxd4
{[%clk 0:00:03.1]} 43. Be2 {[%clk 0:00:11.2]} 43... Kf8 {[%clk 0:00:02.6]} 44.
g4 {[%clk 0:00:11]} 44... Nd7 {[%clk 0:00:02.3]} 45. Kg3 {[%clk 0:00:11]} 45...
Nc5 {[%clk 0:00:02.5]} 46. Kf4 {[%clk 0:00:10.8]} 46... Kg7 {[%clk 0:00:02.7]}
47. g5 {[%clk 0:00:11.1]} 47... f6 {[%clk 0:00:02.4]} 48. Kg4 {[%clk 0:00:10.6]}
48... Kf7 {[%clk 0:00:02.4]} 49. Kf4 {[%clk 0:00:11.2]} 1-0